Cogmind - Beta 13 X2 @@@ ROGUE MODE // 2024.02.10 @ 09:09:14 Player: Minty Result: Destroyed by Y-45 Defender with Heavy Assault Rifle Performance ------------- Evolutions (2) 1000 Regions Visited (6) 1200 Robots Destroyed (79) 395 Value Destroyed (2666) 2666 Prototype IDs (4) 80 Alien Tech Used (0) 0 Bonus (1380) 1380 TOTAL SCORE: 6721 Bonus ------- High Alert Combat Kills 419 Follower Combat Kills 261 Entered Garrisons 200 Used RIF Installer 500 Cogmind --------- Core Integrity 0/550 Matter 248/300 Energy 160/160 System Corruption 1% Temperature Cool (0) Movement Walking (130) Location -8/Materials Parts ------- > --- POWER (1) -------- Light Nuclear Core > --- PROPULSION (2) --- Titanium Leg Titanium Leg > --- UTILITY (4) ------ Improved Medium Armor Plating Hacking Suite Hacking Suite Relay Coupler [Swarmer] (18) > --- WEAPON (4) ------- Beamcaster Ion Cannon Remote Datajack > --- INVENTORY (5) ---- Titanium Leg Improved Heat Sink Small Storage Unit Relay Coupler [Behemoth] (9) Improved Datajack Peak State ------------ > --- POWER ------------ Light Angular Momentum Engine > --- PROPULSION ------- Titanium Leg Compact Wheel > --- UTILITY ---------- Improved Heat Sink High-capacity Storage Unit Relay Coupler [Swarmer] Relay Coupler [Sentry] > --- WEAPON ----------- Heavy Laser Heavy Laser Heavy Laser Remote Datajack > --- INVENTORY -------- Light Treads Light Treads Titanium Leg Titanium Leg Titanium Leg Titanium Leg Wheel Small Storage Unit Medium Matter Pod Improved Medium Armor Plating Improved Medium Armor Plating Improved Medium Armor Plating Hacking Suite Relay Coupler [Behemoth] Beamcaster Assault Cannon Assault Cannon Remote Datajack Maul [Rating: 41] Favorites ----------- Power Light Angular Momentum Engine Engine Light Angular Momentum Engine Power Core Light Nuclear Core Propulsion Light Treads Treads Light Treads Leg Titanium Leg Wheel Compact Wheel Utility Small Storage Unit Device Heat Sink Storage Small Storage Unit Processor Signal Interpreter Hackware Relay Coupler [Swarmer] Protection Weapon Shielding Weapon Improved Light Cannon Energy Gun Heavy Laser Energy Cannon Ion Cannon Ballistic Gun Shotgun Ballistic Cannon Improved Light Cannon Special Weapon Remote Datajack Impact Weapon Maul Special Melee Weapon Improved Datajack Build | -11 -10 -10 -9 -9 -9 -8 ------- Run | Yrd Mat Min Mat Sto Gar Mat Slots Evolved 4 | . . . 2 . . 2 Power . | . . . . . . . Propulsion . | . . . . . . . Utility 2 | . . . . . . 2 Weapon 2 | . . . 2 . . . Parts Attached 73 | . 10 3 5 2 19 34 Power 7 | . . . 1 . 1 5 Engine 5 | . . . 1 . 1 3 Core 2 | . . . . . . 2 Reactor . | . . . . . . . Propulsion 15 | . 2 2 . 2 3 6 Treads 9 | . 2 2 . 2 3 . Leg 4 | . . . . . . 4 Wheel 2 | . . . . . . 2 Hover . | . . . . . . . Flight . | . . . . . . . Utility 22 | . 2 1 . . 6 13 Device 3 | . 1 . . . . 2 Storage 2 | . . . . . . 2 Processor 3 | . 1 . . . 1 1 Hackware 7 | . . . . . 3 4 Protection 7 | . . 1 . . 2 4 Artifact . | . . . . . . . Weapon 29 | . 6 . 4 . 9 10 Energy Gun 5 | . . . . . . 5 Energy Cannon 1 | . . . . . . 1 Ballistic Gun 2 | . 2 . . . . . Ballistic Cannon 12 | . 2 . 4 . 4 2 Launcher . | . . . . . . . Special Weapon 2 | . . . . . 1 1 Impact Weapon 5 | . 2 . . . 3 . Slashing Weapon . | . . . . . . . Piercing Weapon . | . . . . . . . Special Melee Weapon 2 | . . . . . 1 1 Unidentified Prototypes . | . . . . . . . Corrupted Parts 2 | . . 2 . . . . System Corruption 10 | . . 10 . . . . Parts Lost 12 | . . 2 . . 2 8 Power 4 | . . 1 . . . 3 Propulsion 1 | . . 1 . . . . Utility 2 | . . . . . 1 1 Weapon 5 | . . . . . 1 4 Highest Loss Streak 4 | . . 2 . . 1 4 To Critical Strikes . | . . . . . . . Average Slot Usage (%) 95 | . 98 88 85 100 97 93 Engine 8 | . 14 3 1 11 11 5 Treads 17 | . 27 27 22 22 22 3 Leg 3 | . . . . . . 10 Wheel 1 | . . . . . . 4 Device 1 | . 6 . . . . 1 Storage 10 | . 14 14 11 11 11 8 Processor 2 | . 5 4 . . 2 1 Hackware 5 | . . . . . 1 19 Protection 5 | . . 9 11 11 6 4 Energy Gun 4 | . . . . . . 15 Ballistic Cannon 20 | . 5 . 36 44 39 6 Special Weapon 2 | . . . . . 1 5 Impact Weapon 6 | . 20 28 4 . . . Naked Turns . | . . . . . . . Heaviest Build 71 | 12 17 14 29 29 32 71 Greatest Support 40 | 20 40 40 40 40 40 40 Greatest Overweight (x) 4 | . . . . . 1 4 Average Overweight (x) . | . . . . . . 1 Largest Inventory Capacity 20 | . 8 8 8 8 8 20 Average Capacity 9 | . 8 8 8 8 8 12 Most Carried 20 | . 8 8 8 8 8 20 Average Carried 8 | . 7 8 7 7 7 10 Final Capacity 8 | 8 8 8 8 8 8 5 Final Carried 8 | 6 8 8 7 8 8 5 Class Distribution -------------------- 31% | Mutant 23% | Tank 16% | Gunner 9% | Commander-Tank 9% | Bothacker-Gunner 6% | Bothacker-Tank Dominant Class ---------------- Mutant | -10/Materials Mutant | -10/Mines Tank | -9/Materials Commander-Tank | -9/Storage Tank | -9/Garrison Gunner | -8/Materials Resources | -11 -10 -10 -9 -9 -9 -8 ----------- Run | Yrd Mat Min Mat Sto Gar Mat Matter Collected 1985 | 200 151 37 130 210 760 497 Remotely . | . . . . . . . Salvage Created 2372 | . 421 259 199 354 345 794 Parts 103 | . 21 2 6 25 15 34 Haulers Intercepted 3 | . 2 . . 1 . . Recyclers Shooed . | . . . . . . . Parts Field Recycled . | . . . . . . . Retrieved Matter . | . . . . . . . Parts Self-Destructed . | . . . . . . . Prevented . | . . . . . . . Kills | -11 -10 -10 -9 -9 -9 -8 ------- Run | Yrd Mat Min Mat Sto Gar Mat Combat Hostiles Destroyed 56 | . 9 1 3 6 17 20 Melee 6 | . 4 1 . . . 1 Guns 15 | . . . . . . 15 Cannons 30 | . 1 . 3 6 17 3 Classes Destroyed 11 | . 6 4 . . 1 . Worker 2 | . . 1 . 1 . . Builder 6 | . 3 2 . . . 1 Tunneler 2 | . . 1 . . . 1 Hauler 3 | . 2 . . 1 . . Recycler 3 | . . 2 1 . . . Operator 4 | . 1 . . 2 . 1 Watcher 3 | . 2 . . 1 . . Swarmer 10 | . 3 . . . 3 4 Grunt 34 | . 6 . 2 1 11 14 Brawler 1 | . . . . . 1 . Sentry 11 | . . 1 1 5 2 2 Best Kill Streak 5 | . 5 2 3 3 3 2 Combat Bots Only 5 | . 5 1 3 3 3 2 Max Kills in Single Turn 2 | . 1 1 1 1 2 1 Gunslinging . | . . . . . . . Exploded . | . . . . . . . Melee 1 | . 1 1 . . . 1 Uniques/NPCs Destroyed . | . . . . . . . Combat | -11 -10 -10 -9 -9 -9 -8 -------- Run | Yrd Mat Min Mat Sto Gar Mat Hostile Shots Fired 311 | . 44 20 8 3 76 160 Missed 79 | . 13 3 2 . 16 45 Damage Taken 3479 | . 290 252 74 49 934 1880 Core 839 | . 80 17 10 . 177 555 Absorbed by Shields . | . . . . . . . Redirected to Shielding 56 | . . . 13 9 34 . Regen/Repaired (Parts) 130 | . . . . . . 130 Core Remaining (%) 71 | 100 . 61 . . 53 . Volleys Fired 153 | . 7 . 5 12 46 83 Largest 4 | . 2 . 4 4 4 3 Hottest 207 | . 78 . 156 156 156 207 Shots Fired 395 | . 14 . 20 48 152 161 Gun 107 | . 4 . . . . 103 Cannon 269 | . 10 . 20 48 150 41 Launcher . | . . . . . . . Special 19 | . . . . . 2 17 Kinetic 267 | . 14 . 20 48 150 35 Thermal 109 | . . . . . . 109 Explosive . | . . . . . . . Electromagnetic . | . . . . . . . Robot Hit Streak 14 | . 3 . 5 5 9 14 Robot Miss Streak 5 | . 2 . 4 2 3 5 Penetration Max . | . . . . . . . Secondary Targets 2 | . . . . . . 2 Max Gunslinging Chain 1 | . . . . . . 1 Shots Hit Robots 228 | . 31 9 7 17 62 102 Core Hits 80 | . 8 1 4 9 22 36 Critical Kills 4 | . 3 1 . . . . Critical Parts Destroyed 8 | . 4 3 . . 1 . Critical Strikes 17 | . 7 4 1 . 2 3 Burn 2 | . . . . . . 2 Blast 3 | . . . 1 . 1 1 Smash 12 | . 7 4 . . 1 . Melee Attacks 53 | . 33 11 . . 7 2 Impact 51 | . 33 11 . . 7 . Slashing . | . . . . . . . Piercing . | . . . . . . . Sneak Attacks 9 | . 3 6 . . . . Combat Hostiles . | . . . . . . . Follow-up Attacks 3 | . 2 1 . . . . Damage Inflicted 5467 | . 1125 495 157 366 1432 1892 Guns 1322 | . 52 . . . . 1270 Cannons 2628 | . 132 . 157 352 1383 604 Explosions . | . . . . . . . Melee 1468 | . 938 495 . . 35 . Ramming 49 | . 3 . . 14 14 18 Kinetic 2589 | . 184 . 157 352 1383 513 Thermal 1361 | . . . . . . 1361 Explosive . | . . . . . . . Electromagnetic . | . . . . . . . Impact 1468 | . 938 495 . . 35 . Slashing . | . . . . . . . Piercing . | . . . . . . . Highest Corruption 10 | . . 10 . . . 1 Average Corruption 3 | . . 9 . . . 1 Corruption Purged . | . . . . . . . Corruption Blocked . | . . . . . . . Effects 18 | . . 8 . . . 10 Message Errors 3 | . . 1 . . . 2 Matter Fused 3 | . . 1 . . . 2 Heat Flow Errors 2 | . . 1 . . . 1 Data Loss (minor) 4 | . . 2 . . . 2 Data Loss (major) 2 | . . 2 . . . . Misfires 2 | . . . . . . 2 Alerts 1 | . . 1 . . . . Weapon Failures 1 | . . . . . . 1 Overload Shots . | . . . . . . . Overflow Damage 777 | . 390 317 . 20 38 12 Projectiles 39 | . 4 . . 20 3 12 Explosions . | . . . . . . . Melee 738 | . 386 317 . . 35 . Knockbacks 31 | . 2 2 . 1 12 14 Impact 5 | . 2 2 . . 1 . Kinetic 21 | . . . . 1 9 11 Secondary 5 | . . . . . 2 3 Self-Inflicted Damage 8 | . . . . . . 8 Shots . | . . . . . . . Rammed 13 | . 1 . . 3 7 2 Targets Rammed 14 | . 1 . . 4 7 2 Kicked . | . . . . . . . Crushed 1 | . . . . 1 . . Highest Temperature 713 | . 2 267 212 180 489 713 Average Temperature 168 | . 2 126 82 59 143 218 Received Heat Transfer 1329 | . 81 90 33 9 261 855 Effects 36 | . . . . . 8 28 Shutdowns 11 | . . . . . 2 9 Energy Bleed 6 | . . . . . . 6 Interference 6 | . . . . . 1 5 Matter Decay 3 | . . . . . . 3 Short Circuit 4 | . . . . . 1 3 Damage (minor) 1 | . . . . . 1 . Damage (major) 3 | . . . . . 3 . Damage (core) 2 | . . . . . . 2 Siege Activations . | . . . . . . . Robots Corrupted . | . . . . . . . Combat Hostiles . | . . . . . . . Parts Fried 22 | . 11 11 . . . . Impact Corruptions 29 | . 15 13 . . 1 . Robots Melted 1 | . . . . . . 1 Combat Hostiles 1 | . . . . . . 1 Parts Melted 9 | . . . . . . 9 Heat Transferred 2738 | . . . . . . 2738 Parts Sabotaged . | . . . . . . . Parts Stolen . | . . . . . . . Parts Stripped . | . . . . . . . Power Chain Reactions . | . . . . . . . Missiles Intercepted . | . . . . . . . Alert | -11 -10 -10 -9 -9 -9 -8 ------- Run | Yrd Mat Min Mat Sto Gar Mat Peak Influence 1085 | . 350 144 168 598 1085 733 Initial 528 | . . 99 55 70 258 528 Average 488 | . 182 123 109 353 699 621 Maximum Alert Level 3 | . 1 . . 2 3 3 Low Security (%) 20 | . 43 100 100 22 . . Level 1 15 | . 56 . . 16 12 . Level 2 48 | . . . . 61 50 89 Level 3 14 | . . . . . 36 10 Level 4 . | . . . . . . . Level 5 . | . . . . . . . High Security . | . . . . . . . Max Security . | . . . . . . . Squads Dispatched 20 | . 4 . 1 6 . 9 Investigation 12 | . 3 . 1 4 . 4 Extermination . | . . . . . . . Reinforcement 4 | . 1 . . 1 . 2 Assault 3 | . . . . . . 3 Garrison 1 | . . . . 1 . . Intercept . | . . . . . . . Searches Triggered . | . . . . . . . Construction Impeded . | . . . . . . . Haulers Reinforced . | . . . . . . . Active Scanning Responses . | . . . . . . . Cargo Convoy Interrupts . | . . . . . . . Stealth | -11 -10 -10 -9 -9 -9 -8 --------- Run | Yrd Mat Min Mat Sto Gar Mat Distress Signals . | . . . . . . . Communications Jammed . | . . . . . . . Distress Signals . | . . . . . . . Times Spotted 90 | . 13 2 3 8 24 40 Peak Tracking Total 5 | . 5 2 2 2 5 4 Tactical Retreats 4 | . . . . . 2 2 Traps | -11 -10 -10 -9 -9 -9 -8 ------- Run | Yrd Mat Min Mat Sto Gar Mat Traps Triggered 8 | . . . . 2 4 2 Indirectly . | . . . . . . . Trap Hack Attempts 16 | . . . . . 6 10 Triggered . | . . . . . . . Disarmed 1 | . . . . . 1 . Reprogrammed 6 | . 6 . . . . . Reused 5 | . . . . . 5 . Traps Extracted . | . . . . . . . Installed 6 | . . . . . 6 . Triggered 5 | . . . . . 5 . Most Traps Carried 4 | . . . . . 4 . Machines | -11 -10 -10 -9 -9 -9 -8 ---------- Run | Yrd Mat Min Mat Sto Gar Mat Machines Disabled 9 | . . . . 3 6 . Max in Single Turn 1 | . . . . 1 1 . Garrison Relay 2 | . . . . . 2 . Machines Repaired . | . . . . . . . Machines Dismantled . | . . . . . . . Machines Sabotaged . | . . . . . . . Overloaded Fab Kills . | . . . . . . . Hacking | -11 -10 -10 -9 -9 -9 -8 --------- Run | Yrd Mat Min Mat Sto Gar Mat Machines Accessed 19 | . 7 . 1 3 2 6 Terminals 15 | . 6 . 1 2 2 4 Fabricators . | . . . . . . . Repair Stations 1 | . . . . . . 1 Recycling Units 2 | . 1 . . . . 1 Scanalyzers . | . . . . . . . Garrison Access 1 | . . . . 1 . . Total Hacks 52 | . 20 . 3 8 5 16 Successful 21 | . 8 . 2 4 1 6 Failed 31 | . 12 . 1 4 4 10 Catastrophic 9 | . 1 . . 1 2 5 Database Lockouts . | . . . . . . . Manual 29 | . 12 . 2 5 . 10 Terminals 43 | . 18 . 3 7 5 10 Fabricators . | . . . . . . . Repair Stations 2 | . . . . . . 2 Recycling Units 6 | . 2 . . . . 4 Scanalyzers . | . . . . . . . Garrison Access 1 | . . . . 1 . . Terminal Hacks 6 | . 3 . 1 1 1 . Prototype ID Bank 2 | . 2 . . . . . Branch Access Points 1 | . . . 1 . . . Alert Level 1 | . . . . 1 . . Reprogram Traps 1 | . 1 . . . . . Security Stations 1 | . . . . . 1 . Fabricator Hacks . | . . . . . . . Repair Station Hacks 2 | . . . . . . 2 Scan Component 1 | . . . . . . 1 Repair 1 | . . . . . . 1 Recycling Unit Hacks 5 | . 1 . . . . 4 Report Inventory 3 | . 1 . . . . 2 Retrieve Matter 1 | . . . . . . 1 Retrieve Components 1 | . . . . . . 1 Scanalyzer . | . . . . . . . Garrison Access Hacks 1 | . . . . 1 . . Unlock Access 1 | . . . . 1 . . Unauthorized Hacks 7 | . 4 . 1 2 . . Terminals 6 | . 3 . 1 2 . . Botnet 4 | . 2 . 1 1 . . Search 2 | . 1 . . 1 . . Fabricators . | . . . . . . . Repair Stations . | . . . . . . . Recycling Units 1 | . 1 . . . . . Tunnel 1 | . 1 . . . . . Scanalyzers . | . . . . . . . Garrison Access . | . . . . . . . Data Cores Recovered . | . . . . . . . Used . | . . . . . . . Hacking Detections 18 | . 7 . 1 2 2 6 Full Trace Events 12 | . 5 . 1 1 2 3 Feedback Events 1 | . . . . . . 1 Corruption 1 | . . . . . . 1 Feedback Blocked . | . . . . . . . Robot Schematics Acquired . | . . . . . . . Robots Built . | . . . . . . . Authchips . | . . . . . . . Time . | . . . . . . . Total Robot Build Rating . | . . . . . . . Part Schematics Acquired . | . . . . . . . Parts Built . | . . . . . . . Authchips . | . . . . . . . Time . | . . . . . . . Total Part Build Rating . | . . . . . . . Parts Repaired 1 | . . . . . . 1 Time 13 | . . . . . . 13 Parts Recycled . | . . . . . . . Recycled Matter . | . . . . . . . Retrieved Matter 151 | . . . . . . 151 Retrieved Components 9 | . . . . . . 9 Parts Scanalyzed . | . . . . . . . Part Schematics Acquired . | . . . . . . . Parts Damaged . | . . . . . . . Bothacking | -11 -10 -10 -9 -9 -9 -8 ------------ Run | Yrd Mat Min Mat Sto Gar Mat Used RIF Installer 1 | . . . . . 1 . Robots Hacked 13 | . . . . . 1 12 Non-combat 1 | . . . . . . 1 Combat 12 | . . . . . 1 11 Robot Hacks Applied 15 | . . . . . 1 14 parse_system 1 | . . . . . . 1 no_distress 1 | . . . . . . 1 ignore_repairs 1 | . . . . . . 1 reboot_propulsion 1 | . . . . . . 1 mark_system 1 | . . . . . . 1 amplify_resonance 1 | . . . . . . 1 reboot_system 3 | . . . . . . 3 overwrite_iff 4 | . . . . . . 4 formatsys_high 2 | . . . . . 1 1 Relay Couplers Released 9 | . . . . . 9 . Machine Destruction 9 | . . . . . 9 . Attached 5 | . . . . . 3 2 Fabnet Peak Effective % . | . . . . . . . Robots Rewired . | . . . . . . . Allies Hacked . | . . . . . . . Hacks Repelled . | . . . . . . . Allies | -11 -10 -10 -9 -9 -9 -8 -------- Run | Yrd Mat Min Mat Sto Gar Mat Total Allies 17 | . . . . 10 2 5 Largest Group 10 | . . . . 10 1 1 Highest-Rated Group 88 | . . . . 88 31 16 Highest-Rated Ally 31 | . . . . 16 31 16 Total Orders . | . . . . . . . Ally Attacks 62 | . . . . 36 11 15 Total Damage 688 | . . . . 350 191 147 Kills 10 | . . . . 8 . 2 Allies Corrupted 1 | . . . . 1 . . Allies Melted . | . . . . . . . Intel | -11 -10 -10 -9 -9 -9 -8 ------- Run | Yrd Mat Min Mat Sto Gar Mat Robot Analysis Total . | . . . . . . . Derelict Logs Recovered . | . . . . . . . Drone Launches . | . . . . . . . Drone Recoveries . | . . . . . . . Exploration | -11 -10 -10 -9 -9 -9 -8 ------------- Run | Yrd Mat Min Mat Sto Gar Mat Turns Passed 4297 | . 757 371 105 413 1383 1268 Spaces Moved 2184 | 1 391 211 51 220 675 635 Core . | . . . . . . . Treads 1607 | . 374 211 51 220 675 76 Legs 360 | 1 17 . . . . 342 Wheels 217 | . . . . . . 217 Hover . | . . . . . . . Flight . | . . . . . . . Fastest Speed 120 | 120 120 160 160 160 160 120 Average Speed 154 | 120 158 160 160 160 160 141 Slowest Speed 240 | 120 160 160 160 160 240 240 Overloaded Moves . | . . . . . . . Propulsion Burnouts . | . . . . . . . Robots Hopped . | . . . . . . . Cave-ins Triggered . | . . . . . . . Exploration Rate (%) 37 | 2 68 59 6 31 54 44 Regions Visited 6 Branch Regions 2 Pre-discovered Areas 1 | . 1 . . . . . Known Exits Taken 4 | . 1 1 1 1 . . Unknown Exits Taken 1 | 1 . . . . . . Scrap Searched 1 | . . 1 . . . . Spaces Dug 1 | . 1 . . . . . Terrain Destroyed 13 | . 1 . 1 3 3 5 Melee 1 | . 1 . . . . . Projectile 12 | . . . 1 3 3 5 AOE . | . . . . . . . Terrain Rammed . | . . . . . . . Walls Destroyed . | . . . . . . . Machines Disabled . | . . . . . . . Actions | -11 -10 -10 -9 -9 -9 -8 --------- Run | Yrd Mat Min Mat Sto Gar Mat Total 2733 | . 463 226 61 250 859 874 Wait 127 | . 10 . . 6 48 63 Move 2178 | . 390 210 50 220 673 635 Hop . | . . . . . . . Pick Up 46 | . 9 1 1 2 18 15 Fast Attach 29 | . 3 2 1 . 4 19 Attach 8 | . 2 . 2 . 2 2 Detach 9 | . . 1 . . 3 5 Swap 36 | . 5 1 2 2 13 13 Drop 61 | . 11 2 . 3 21 24 Fire 153 | . 7 . 5 12 46 83 Melee 43 | . 25 9 . . 7 2 Ram 2 | . . . . . . 2 Kick . | . . . . . . . Crush 12 | . 1 . . 4 7 . Escape Stasis . | . . . . . . . Rewire 7 | . . . . 1 5 1 Trap 22 | . . . . . 12 10 Miscellaneous . | . . . . . . . Route ------- -11/Scrapyard -10/Materials (discovered 3 exits: *Mat / *Min x2) -10/Mines -9/Materials (discovered 4 exits: Min x2 / *Sto x2) -9/Storage -9/Garrison -8/Materials History --------- Turn | Location | Event 1 | -11/Scrapyard | Discovered new exit (range 0) 1 | -11/Scrapyard | Entered Materials 200 | -10/Materials | Discovered new exit (range 3) 308 | -10/Materials | Build established: Mutant 418 | -10/Materials | Discovered new exit (range 12) 443 | -10/Materials | Identified exit to Materials 553 | -10/Materials | Discovered new exit (range 11) 753 | -10/Materials | Identified exit to Mines 758 | -10/Materials | Entered Mines 861 | -10/Mines | System corruption reached 10% 1113 | -10/Mines | Discovered exit to Materials (range 8) 1129 | -10/Mines | Entered Materials 1129 | -9/Materials | Evolved 2 slots: Weapon x2 1156 | -9/Materials | Identified exit to Mines 1156 | -9/Materials | Identified exit to Storage 1234 | -9/Materials | Entered Storage 1247 | -9/Storage | Assisted by bots powering up and referring to "LRC-V3" 1404 | -9/Storage | Lost 3 allies 1549 | -9/Storage | Build established: Commander-Tank 1615 | -9/Storage | Garrison activated, responded to threat 1642 | -9/Storage | Identified exit to Garrison 1647 | -9/Storage | Entered Garrison 1786 | -9/Garrison | Triggered checkpoint 1844 | -9/Garrison | Rescued a captive Derelict 1876 | -9/Garrison | Garrison Relay disabled 1958 | -9/Garrison | Build established: Tank 2220 | -9/Garrison | Triggered checkpoint 2295 | -9/Garrison | Discovered new exit (range 14) 2434 | -9/Garrison | Installed Relay Interface Framework 2524 | -9/Garrison | Triggered checkpoint 2556 | -9/Garrison | Triggered checkpoint 2580 | -9/Garrison | Triggered checkpoint 2640 | -9/Garrison | Build established: Gunner 2768 | -9/Garrison | Learned Materials security intel 2838 | -9/Garrison | Garrison Relay disabled 3030 | -9/Garrison | Entered Materials 3030 | -8/Materials | Accompanied by 1 ally 3030 | -8/Materials | Evolved 2 slots: Utility x2 3430 | -8/Materials | First assault squad dispatched 3616 | -8/Materials | Lost 4 parts (1p1u2w) 3673 | -8/Materials | Repaired Sml. Storage Unit 3794 | -8/Materials | Core integrity fell below 50% 3814 | -8/Materials | Core integrity fell below 20% 4298 | -8/Materials | Destroyed by Y-45 Defender with Heavy Assault Rifle Last Messages --------------- 04171_ Dropped Hrd. Light Armor Plating. 04191_ Connecting with Terminal... 04198_ K-01 Serf cleans the Terminal. 04200_ K-01 Serf cleans the Processing Tank. 04203_ Destroyed Mining Laser. 04203_ T-07 Excavator destroyed. 04204_ K-01 Serf cleans the Processing Tank. 04204_ K-01 Serf cleans the Terminal. 04206_ Acquired 14 matter. 04208_ K-01 Serf collects debris. 04215_ K-01 Serf cleans the Terminal. 04224_ Defender 3a destroyed. 04226_ K-01 Serf collects debris. 04230_ ALERT: Significant disruption in Zone 4N, assault force dispatched. 04243_ IG53K%:QCDH95JLV:YB5 04283_ Triggered Alarm Trap. 04283_ An alarm sounds. 04283_ ALERT: Alarm triggered, dispatching investigation squad. 04288_ System corrupted: Component data lost. 04288_ S-10 Pest destroyed. Map ----- +----------------------------------------------------+ | #+###?# #?# """ R"#???# # # """""???+ ? | | # #?### ### """ """#???# """ # + """""???# ? | | # #?# # """ #???# """ # # """""???# ? | | #%#?# # """ #???? """ ### #??""""???? ? | | # #?# T + """ #?????? =??# #???? ???# #? | | # #?# # #?????###+##### #?????????# #? | | # #?# ########+######?# ##+#??????# #? | | # #?### ###??????# ## ### ] ! #??????# #? | | #%#???# ########## != #????### ## | | #%#???# # ### T #????#! | | #%#???# ##+#### ###### | | #%##### + ## ! * T | | # ##########+## ! ## !%[###### ! | | # ##??????? # ## """""[=#????# | | # """ ##??????? # ## """"" #????###+## | | # """ #???????#= # ## """"" #????? | | # """ #???????# # ## #????# | | # #####+#?# # ## #????# [ | | # #?# # ####### #####+#????# | | #### ####### #?# # #?????? #??????????# | | ???# #?????# #?#+############?? #??????????# | | ???# #?????# ### #?????# #?? ???????????###### | | ####+####### ####### #???????????????????? | | # %= + + #???????????????????? | | # """ ## # #???????????????????? | | # """"" ### [#@ #???????????????????? | | # """"" #?# =+% #???????????????????? | | # """"" #?#+###+####### #???????????????????? | | # """ #?# #?# #???????????????????? | | # #?# #?# Y #???????????????????? | | # = [%% #?# #?##/###???????????????????? | | #####/#####?# #??? #?????????????????????? | | # * #????###########??? #?????????????????????? | | " # #?????????????????? #?????????????????????? | | "" + #?????????????????? #?????????????????????? | | R" # #?????????????????? #?????????????????????? | | "" # #??????????????????##?????????????????????? | | # #?????????????????????????????????????????? | | = # #?????????????????????????????????????????? | | + #?????????????????????????????????????????? | | # #?????????????????????????????????????????? | | " # =#########/######??????????????????????????? | | " #%=% ^ #??????????????????????????? | | " # % % " +??????????????????????????? | | #%% % ^ "%" #??????????????????????????? | | ################### #??????????????????????????? | | ??????????????????????#??????????????????????????? | | ?????????????????????????????????????????????????? | | ?????????????????????????????????????????????????? | | ?????????????????????????????????????????????????? | +----------------------------------------------------+ Best States ------------- Heat Dissipation 45 Energy Generation 18 Energy Capacity 265 Matter Stores 300 Matter Capacity 300 Sight Range 16 Terrain Scan Density 10 Armor Coverage 450 Weapon Shielding 33 Evasion (%) 55 Targeting Accuracy 8 Recoil Reduction 2 Salvage Targeting 1 Offensive Hacking 20 Relay Coupler Types 3 Relay Coupler Value 72 Item Schematics ----------------- None Robot Schematics ------------------ None Fabricated ------------ Nothing Alien Tech Used ----------------- None Achievements -------------- None Challenges ------------ None Game ------ Seed ModifiedMakeshiftScanner Manual? 0 Play Time 00:28:39 Cumulative 647.4 hours Start 2024.02.10 @ 08:48:35 End 2024.02.10 @ 09:09:14 Sessions 1 Manual Loads 0 Difficulty Rogue Special Mode None Game No. 635 Rogue 362 Adventurer 123 Explorer 150 Win Type - Total 25 Types 19/0/4/1/0/0/0/1/0 Lore% 80 Gallery% 91 Achievement% 76 Wizard Run 0 Options --------- ASCII 0 Keyboard 1 Movement Numpad Keybinds 0 Fullscreen 2 Font 18/X11Bold Map View 76x50 Zoom Use 0% Tactical HUD 1 Map Filters NONE Filters NONE Steam 1 RUN: 29b2d209-acbd-46eb-bf3b-9cb1d1b7ebe4